bitfinex/quotes_SOLUSD_20250912
["timestamp","ask_amount","ask_price","bid_price","bid_amount"]
[1757649004748,0.06,234.42,234.41,5.12819117]
[1757649004953,0.06,234.42,234.41,65.00819117]
[1757649006640,0.06,234.42,234.41,31.12819117]
[1757649006851,0.06,234.42,234.41,65.00819117]
[1757649009566,0.06,234.42,234.41,30.9860296]
[1757649009744,0.06,234.42,234.41,64.8660296]
[1757649011841,0.06,234.42,234.41,30.2660296]
[1757649012043,0.06,234.42,234.41,64.1260296]
[1757649012372,0.06,234.42,234.41,64.98819117]
[1757649014067,0.06,234.42,234.41,64.1260296]
[1757649014271,0.06,234.42,234.41,64.8460296]
[1757649018357,0.06,234.42,234.41,30.9860296]
[1757649018556,0.06,234.42,234.41,64.1260296]
[1757649018775,0.06,234.42,234.41,64.8460296]
[1757649018956,0.06,234.42,234.41,64.1260296]
[1757649019158,0.06,234.42,234.41,64.8460296]
[1757649019575,0.06,234.42,234.41,26.0]
[1757649019778,0.18,234.42,234.37,0.03]
[1757649020086,0.18,234.42,234.4,0.03]
[1757649020281,0.06,234.42,234.41,33.86]
[1757649020955,0.06,234.42,234.41,34.58]
[1757649021275,0.06,234.42,234.41,33.86]
[1757649021775,0.06,234.42,234.41,34.58]
[1757649022478,0.06,234.42,234.41,38.8460296]
[1757649022853,0.06,234.42,234.41,4.9860296]
[1757649023054,0.06,234.42,234.41,38.8460296]
[1757649023570,0.06,234.42,234.41,4.9860296]
[1757649023766,0.06,234.42,234.41,38.8460296]
[1757649023962,0.06,234.42,234.41,38.98819117]
[1757649029586,0.06,234.45,234.44,26.0]
[1757649029758,0.06,234.45,234.44,59.84]
[1757649029968,0.06,234.45,234.44,60.52]
[1757649031496,0.06,234.45,234.44,64.7854837]
[1757649032559,0.06,234.45,234.44,31.08764527]
[1757649032763,0.06,234.45,234.44,64.92764527]
[1757649034293,0.06,234.45,234.44,31.08764527]
[1757649034603,0.06,234.45,234.44,64.92764527]
[1757649037404,0.06,234.45,234.44,31.08764527]
[1757649037569,0.06,234.45,234.44,64.90764527]
[1757649039204,0.06,234.45,234.44,31.08764527]
[1757649039584,0.06,234.45,234.44,4.2654837]
[1757649039898,0.06,234.45,234.44,33.82]
[1757649040606,0.06,234.45,234.44,38.0854837]
[1757649043084,0.06,234.45,234.44,33.82]
[1757649043275,0.06,234.45,234.44,34.5]
[1757649043472,0.06,234.45,234.44,33.82]
[1757649043999,0.06,234.45,234.44,38.0854837]
[1757649044181,0.18,234.45,234.42,0.03]
[1757649044386,0.18,234.45,234.42,33.85]
[1757649044576,0.12,234.44,234.42,33.85]
[1757649044776,0.12,234.43,234.42,33.85]
[1757649044983,0.12,234.43,234.42,0.03]
[1757649045181,0.12,234.43,234.42,33.85]
[1757649045805,4.38566565,234.43,234.42,0.03]
[1757649046015,3.30621759,234.43,234.42,0.03]
[1757649046501,0.12,234.43,234.42,0.03]
[1757649047205,4.38566565,234.43,234.42,0.03]
[1757649048292,17.98125966,234.43,234.42,0.03]
[1757649049491,149.08125966,234.43,234.42,0.03]
[1757649050913,155.12850299,234.43,234.42,0.03]
[1757649051405,157.08201099,234.43,234.42,0.03]
[1757649052290,155.12850299,234.43,234.42,0.03]
[1757649055318,152.26369407,234.43,234.42,0.03]
[1757649055812,152.14369407,234.43,234.42,0.03]
[1757649056513,147.93802842,234.43,234.42,0.03]
[1757649056895,0.06,234.43,234.42,0.03]
[1757649057088,0.06,234.43,234.42,0.7]
[1757649057294,0.06,234.43,234.42,0.03]
[1757649060332,4.32566565,234.43,234.42,0.03]
[1757649060619,17.92125966,234.43,234.42,0.03]
[1757649060824,18.04125966,234.43,234.42,0.03]
[1757649061931,19.87476766,234.43,234.42,0.03]
[1757649063906,26.02774859,234.43,234.42,0.03]
[1757649064111,23.16991343,234.43,234.42,0.03]
[1757649064932,18.04125966,234.43,234.42,0.03]
[1757649065722,17.92125966,234.43,234.42,0.03]
[1757649066238,19.87476766,234.43,234.42,0.03]
[1757649067721,17.92125966,234.43,234.42,0.03]
[1757649068046,17.92125966,234.43,234.42,0.7]
[1757649068611,17.92125966,234.43,234.42,0.03]
[1757649071031,19.87476766,234.43,234.42,0.03]
[1757649072026,23.04775797,234.43,234.42,0.03]
[1757649072230,19.87476766,234.43,234.42,0.03]
[1757649074242,17.92125966,234.43,234.42,0.03]
[1757649075642,19.87476766,234.43,234.42,0.03]
[1757649076244,23.04865961,234.43,234.42,0.03]
[1757649076539,58.0504958,234.43,234.42,0.03]
[1757649076712,61.04990021,234.43,234.42,0.03]
[1757649076912,57.99455602,234.43,234.42,0.03]
[1757649077115,60.92990021,234.43,234.42,0.03]
[1757649077316,86.92990021,234.43,234.42,0.03]
[1757649078321,49.95239445,234.43,234.42,0.03]
[1757649078625,46.77811708,234.43,234.42,0.7]
[1757649078822,0.06,234.43,234.42,0.7]
[1757649084331,0.06,234.43,234.42,4.96584762]
[1757649088649,0.06,234.43,234.42,5.10800919]
[1757649088830,0.06,234.45,234.42,5.10800919]
[1757649089032,0.06,234.45,234.43,0.82216157]
[1757649089254,0.06,234.45,234.44,33.76]
[1757649089451,0.06,234.45,234.44,38.0254837]
[1757649089649,0.06,234.45,234.44,38.7054837]
[1757649090530,0.06,234.45,234.44,0.68]
[1757649090724,0.06,234.45,234.44,34.42]
[1757649092254,0.06,234.45,234.44,0.68]
[1757649092455,0.06,234.45,234.44,34.42]
[1757649093847,0.06,234.45,234.44,38.6854837]
[1757649096658,0.06,234.45,234.44,34.42]
[1757649097156,0.06,234.45,234.42,34.45]
[1757649097328,0.06,234.45,234.43,0.68]
[1757649097752,0.06,234.45,234.42,38.03580365]
[1757649097941,0.06,234.45,234.44,0.68]
[1757649098256,0.06,234.45,234.42,38.03580365]
[1757649098443,0.06,234.45,234.43,0.68]
[1757649098855,0.06,234.45,234.42,0.03]
[1757649099163,6.45725782,234.45,234.43,0.68]
[1757649100167,6.45725782,234.45,234.44,0.68]
[1757649101284,6.45725782,234.45,234.42,33.75]
[1757649101458,6.45725782,234.45,234.43,0.68]
[1757649102357,6.45725782,234.45,234.42,33.75]
[1757649102563,6.45725782,234.45,234.44,0.68]
[1757649103059,6.45725782,234.45,234.42,33.75]
[1757649103258,6.45725782,234.45,234.44,0.68]
[1757649104636,6.45725782,234.45,234.44,4.9454837]
[1757649107463,6.45725782,234.45,234.44,38.6654837]
[1757649109561,6.45725782,234.45,234.44,11.54490309]
[1757649109866,6.45725782,234.45,234.44,0.68]
[1757649110252,6.45725782,234.45,234.44,4.9454837]
[1757649113259,6.45725782,234.45,234.43,0.03]
[1757649114866,6.45725782,234.45,234.43,0.73]
[1757649115044,6.45725782,234.45,234.44,0.7]
[1757649117345,6.45725782,234.45,234.44,4.9654837]
[1757649118162,6.45725782,234.45,234.44,38.6654837]
[1757649118883,6.45725782,234.45,234.44,34.4]
[1757649119252,6.45725782,234.45,234.44,33.7]
[1757649120084,6.45725782,234.45,234.44,33.68]
[1757649121983,6.45725782,234.45,234.43,4.29563933]
[1757649122188,6.45725782,234.45,234.44,33.68]
[1757649124488,6.45725782,234.45,234.44,34.38]
[1757649124684,6.45725782,234.45,234.44,38.6454837]
[1757649127892,6.45725782,234.45,234.44,34.38]
[1757649128093,6.45725782,234.45,234.44,38.6454837]
[1757649128494,6.45725782,234.45,234.44,0.7]
[1757649128674,6.45725782,234.45,234.44,33.68]
[1757649129398,6.45725782,234.45,234.44,34.38]
[1757649130105,6.45725782,234.45,234.44,38.6454837]
[1757649131718,6.45725782,234.45,234.44,34.38]
[1757649133074,6.45725782,234.45,234.44,34.36]
[1757649133999,6.45725782,234.45,234.44,33.66]
[1757649136790,6.45725782,234.45,234.43,0.03]
[1757649136989,6.45725782,234.45,234.44,33.66]
[1757649138313,6.45725782,234.45,234.44,37.9254837]
[1757649138905,6.45725782,234.45,234.44,33.66]
[1757649142581,6.45725782,234.45,234.43,4.29564744]
[1757649142778,6.45725782,234.45,234.44,33.64]
[1757649144009,6.45725782,234.45,234.43,0.03]
[1757649144315,3.19354662,234.44,234.43,0.03]
[1757649145906,6.06729644,234.44,234.43,0.03]
[1757649146336,16.78914063,234.44,234.43,0.03]
[1757649146496,21.6160729,234.44,234.43,0.03]
[1757649146685,17.86125966,234.43,234.4,0.03]
[1757649147008,15.54910954,234.41,234.4,0.03]
[1757649147305,21.6160729,234.41,234.4,0.03]
[1757649148186,25.8821025,234.41,234.4,0.03]
[1757649149122,156.9821025,234.41,234.4,0.03]
[1757649150305,155.02858697,234.41,234.4,0.03]
[1757649150705,134.29354662,234.41,234.4,0.03]
[1757649151915,134.23354662,234.41,234.4,0.03]
[1757649153920,131.1,234.41,234.4,0.03]
[1757649156502,6.45725782,234.45,234.4,0.03]
[1757649156708,6.45725782,234.45,234.4,0.17216157]
[1757649156918,6.45725782,234.45,234.41,33.62]
[1757649157126,6.45725782,234.45,234.41,46.414541]
[1757649157821,6.45725782,234.45,234.42,4.26584762]
[1757649159829,6.45725782,234.45,234.4,4.29618213]
[1757649160033,6.45725782,234.45,234.42,33.62]
[1757649160213,6.45725782,234.45,234.41,33.62]
[1757649161028,10.72258986,234.45,234.4,0.03]
[1757649161346,13.59559401,234.44,234.4,0.03]
[1757649161915,17.86118676,234.44,234.4,0.03]
[1757649163317,6.45725782,234.45,234.4,0.03]
[1757649164039,3.18232773,234.44,234.4,0.03]
[1757649164223,3.18232773,234.43,234.4,0.03]
[1757649164539,6.45725782,234.45,234.4,0.03]
[1757649164710,3.18236048,234.44,234.4,0.03]
[1757649165037,6.45725782,234.45,234.4,0.03]
[1757649165235,6.45725782,234.45,234.4,1.7359388]
[1757649166107,6.45725782,234.45,234.41,4.2660296]
[1757649166312,6.45725782,234.45,234.42,33.62]
[1757649167144,6.45725782,234.45,234.42,37.88576579]
[1757649167544,6.45725782,234.45,234.42,4.26576579]
[1757649167837,6.45725782,234.45,234.43,33.6]
[1757649169542,6.45725782,234.45,234.44,4.2654837]
[1757649174854,6.45725782,234.45,234.43,33.6]
[1757649175244,6.45725782,234.45,234.43,37.865645]
[1757649180853,6.45725782,234.45,234.44,33.58]
[1757649181356,6.45725782,234.45,234.44,37.98764527]
[1757649181945,6.45725782,234.45,234.44,33.58]
[1757649182524,6.45725782,234.45,234.42,15.07262824]
[1757649182941,6.45725782,234.45,234.43,33.58]
[1757649183653,6.45725782,234.45,234.42,15.07262824]
[1757649183654,6.45725782,234.45,234.44,33.58]
[1757649184720,6.45725782,234.45,234.42,15.07262824]
[1757649184924,6.45725782,234.45,234.43,33.58]
[1757649185828,6.45725782,234.45,234.44,4.2654837]
[1757649186333,6.45725782,234.45,234.44,30.2654837]
[1757649186534,6.45725782,234.45,234.44,63.8254837]
[1757649188644,6.45725782,234.45,234.44,63.96764527]
[1757649192338,6.45725782,234.45,234.44,30.40764527]
[1757649192842,6.45725782,234.45,234.44,63.96764527]
[1757649193254,6.45725782,234.45,234.41,0.03]
[1757649193441,6.45725782,234.45,234.43,26.0]
[1757649193637,6.45725782,234.45,234.44,33.56]
[1757649194066,6.45725782,234.45,234.44,34.27]
[1757649194264,6.45725782,234.45,234.44,38.5354837]
[1757649195059,6.45725782,234.45,234.44,31.11764527]
[1757649195273,6.45725782,234.45,234.44,38.67764527]
[1757649195648,6.45725782,234.45,234.44,37.8254837]
[1757649197464,6.45725782,234.45,234.44,33.56]
[1757649198077,6.45725782,234.45,234.44,33.54]
[1757649198782,6.45725782,234.45,234.44,34.25]
[1757649199469,6.45725782,234.45,234.44,33.54]
[1757649200679,6.45725782,234.45,234.41,4.29589263]
[1757649200985,3.3649244,234.44,234.41,0.03]
[1757649201191,3.1849244,234.43,234.41,0.03]
[1757649201385,0.18,234.44,234.41,0.03]
[1757649201684,3.18582365,234.43,234.41,0.03]
[1757649201874,0.18,234.44,234.41,0.03]
[1757649202048,3.18582365,234.43,234.41,0.03]
[1757649202247,0.18,234.44,234.41,0.03]
[1757649202482,3.18558701,234.43,234.41,0.03]
[1757649202688,0.18,234.44,234.41,0.03]
[1757649202866,3.18558701,234.43,234.41,0.03]
[1757649203070,0.18,234.44,234.41,0.03]
[1757649203265,3.18558701,234.43,234.41,0.03]
[1757649203455,0.18,234.43,234.41,0.03]
[1757649203654,6.45725782,234.45,234.41,0.03]
[1757649203857,3.18522268,234.44,234.41,0.03]
[1757649204185,6.63725782,234.45,234.42,33.54]
[1757649204387,3.18522527,234.44,234.42,33.54]
[1757649204682,6.63725782,234.45,234.42,33.54]
[1757649204866,3.18513509,234.44,234.42,33.54]
[1757649205061,6.63725782,234.45,234.42,33.54]
[1757649205262,3.18514228,234.44,234.41,0.03]
[1757649205465,6.63725782,234.45,234.42,33.54]
[1757649205659,3.18516101,234.44,234.42,33.54]
[1757649205880,6.45725782,234.45,234.42,33.54]
[1757649206075,3.18516085,234.44,234.42,33.54]
[1757649206274,6.45725782,234.45,234.42,33.54]
[1757649206477,3.18541444,234.44,234.42,33.54]
[1757649206677,6.45725782,234.45,234.42,33.54]
[1757649206898,3.18541429,234.44,234.42,33.54]
[1757649207182,6.45725782,234.45,234.42,33.54]
[1757649207488,3.18585081,234.44,234.42,33.54]
[1757649207661,6.45725782,234.45,234.42,33.54]
[1757649207858,3.18576175,234.44,234.42,33.54]
[1757649208063,6.45725782,234.45,234.42,33.54]
[1757649208373,3.18579094,234.44,234.42,33.54]
[1757649208575,3.18628771,234.43,234.42,33.54]
[1757649208776,3.18628771,234.43,234.41,0.03]
[1757649208777,3.36628771,234.43,234.41,0.03]
[1757649209088,3.36628771,234.42,234.41,0.03]
[1757649209574,3.18628771,234.42,234.41,0.03]
[1757649210988,3.18628771,234.42,234.41,0.75]
[1757649211370,3.18628771,234.42,234.41,0.03]
[1757649212086,3.36628771,234.42,234.41,0.03]
[1757649212279,7.63213533,234.42,234.41,0.03]
[1757649213271,10.68452216,234.42,234.41,0.03]
[1757649213577,27.14653664,234.42,234.41,0.03]
[1757649214586,24.09414981,234.42,234.41,0.03]
[1757649214884,7.63213533,234.42,234.41,0.03]
[1757649215088,21.22772934,234.42,234.41,0.03]
[1757649216585,24.28011617,234.42,234.41,0.03]
[1757649217774,24.42227774,234.42,234.41,0.03]
[1757649219280,13.73775558,234.41,234.4,1e-08]
[1757649219586,19.97643012,234.41,234.4,1e-08]
[1757649219789,20.15643012,234.41,234.4,1e-08]
[1757649223588,53.67643012,234.41,234.4,1e-08]
[1757649223996,57.94245972,234.41,234.4,1e-08]
[1757649224368,24.42245972,234.41,234.4,1e-08]
[1757649224677,57.94245972,234.41,234.4,1e-08]
[1757649225091,21.19007289,234.41,234.4,1e-08]
[1757649225388,57.76245972,234.41,234.4,1e-08]
[1757649225598,21.04791132,234.41,234.4,1e-08]
[1757649229900,21.02985296,234.41,234.4,1e-08]
[1757649230610,24.40440136,234.41,234.4,1e-08]
[1757649234610,21.35201453,234.41,234.4,1e-08]
[1757649234791,24.40440136,234.41,234.4,1e-08]
[1757649235675,26.1115779,234.41,234.4,1e-08]
[1757649236409,144.80775557,234.39,234.38,0.03]
[1757649236585,57.72476537,234.39,234.38,0.03]
[1757649241814,24.22476537,234.39,234.38,0.03]
[1757649242016,57.72476537,234.39,234.38,0.03]
[1757649243302,54.67237854,234.39,234.38,0.03]
[1757649243486,57.72476537,234.39,234.38,0.03]
[1757649244998,3.16822935,234.39,234.38,0.7]
[1757649245211,0.06,234.42,234.38,0.7]
[1757649249313,3.05238683,234.39,234.38,0.03]
[1757649249621,17.30798084,234.39,234.38,0.03]
[1757649250306,148.40798084,234.39,234.38,0.03]
[1757649251614,152.67437445,234.39,234.38,0.03]
[1757649251810,186.15437445,234.39,234.38,0.03]
[1757649253326,152.67437445,234.39,234.38,0.03]
[1757649253494,149.62198762,234.39,234.38,0.03]
[1757649253701,182.44198762,234.39,234.38,0.03]
[1757649254028,186.15437445,234.39,234.38,0.03]
[1757649254331,185.49437445,234.39,234.38,0.03]
[1757649254632,182.44198762,234.39,234.38,0.03]
[1757649254811,185.49437445,234.39,234.38,0.03]
[1757649255224,186.15437445,234.39,234.38,0.03]
[1757649255413,185.49437445,234.39,234.38,0.03]
[1757649257044,186.15437445,234.39,234.38,0.03]
[1757649257340,189.33838664,234.39,234.38,0.03]
[1757649258339,188.67838664,234.39,234.38,0.03]
[1757649258555,189.33838664,234.39,234.38,0.03]
[1757649260118,58.23838664,234.39,234.38,0.03]
[1757649260325,55.18599981,234.39,234.38,0.03]
[1757649260710,57.14197217,234.39,234.38,0.03]
[1757649261821,57.20197217,234.39,234.38,0.03]
[1757649262020,3.24401219,234.39,234.38,0.03]
[1757649262221,40.9704058,234.39,234.38,0.03]
[1757649262432,7.5104058,234.39,234.38,0.03]
[1757649263625,7.51219415,234.39,234.38,0.03]
[1757649267340,8.17219415,234.39,234.38,0.03]
[1757649269631,7.51219415,234.39,234.38,0.03]
[1757649270042,8.17219415,234.39,234.38,0.03]
[1757649271176,23.72376052,234.39,234.38,0.03]
[1757649271774,26.59147623,234.39,234.38,0.03]
[1757649274764,26.7336378,234.39,234.38,0.03]
[1757649286583,60.1736378,234.39,234.38,0.03]
[1757649287778,26.7336378,234.39,234.38,0.03]
[1757649287954,57.30592209,234.39,234.38,0.03]
[1757649288281,60.17463048,234.39,234.38,0.03]
[1757649293460,13.73775558,234.38,234.37,0.03]
[1757649293667,20.45226451,234.38,234.37,0.03]
[1757649294558,24.72505906,234.38,234.37,0.03]
[1757649294884,23.56505906,234.38,234.37,0.03]
[1757649295184,24.28505906,234.38,234.37,0.03]
[1757649298285,26.24103142,234.38,234.37,0.03]
[1757649300687,59.64103142,234.38,234.37,0.03]
[1757649301167,26.24103142,234.38,234.37,0.03]
[1757649301365,59.64103142,234.38,234.37,0.03]
[1757649303755,57.68505906,234.38,234.37,0.03]
[1757649303956,59.64103142,234.38,234.37,0.03]
[1757649304685,63.22691691,234.38,234.37,0.03]
[1757649306468,15.69372794,234.37,234.36,0.03]
[1757649306668,13.73775558,234.36,234.35,0.03]
[1757649306968,53.91848342,234.36,234.35,0.03]
[1757649307390,57.5086692,234.36,234.35,0.03]
[1757649307897,9.65091362,234.36,234.35,0.03]
[1757649308188,3.19201945,234.36,234.35,0.03]
[1757649308391,0.06,234.39,234.35,0.03]
[1757649309592,0.06,234.39,234.36,26.0]
[1757649310367,0.06,234.39,234.37,4.26675769]
[1757649311593,0.06,234.39,234.37,37.64675769]
[1757649311791,0.06,234.39,234.37,4.26675769]
[1757649313770,0.06,234.39,234.37,33.38]
[1757649313976,0.06,234.39,234.36,33.38]
[1757649314174,0.06,234.39,234.37,0.03]
[1757649318885,0.06,234.39,234.37,33.41]
[1757649321299,0.06,234.39,234.37,4.29674981]
[1757649321480,0.06,234.39,234.38,33.36]
[1757649322705,0.06,234.39,234.37,33.39]
[1757649325478,0.06,234.39,234.37,37.65675573]
[1757649326910,0.06,234.39,234.38,0.14216157]
[1757649327130,1e-08,234.39,234.38,13.73775558]
[1757649327407,1e-08,234.39,234.38,22.45762061]
[1757649328201,1e-08,234.39,234.38,22.88427817]
[1757649328584,1e-08,234.39,234.38,24.58985327]
[1757649331883,1e-08,234.42,234.41,26.0]
[1757649332079,1e-08,234.42,234.41,73.07775558]
[1757649332310,1e-08,234.42,234.41,77.53104497]
[1757649333086,1e-08,234.42,234.41,81.79707457]
[1757649333408,6.45725782,234.45,234.43,20.0]
[1757649333609,1e-08,234.47,234.46,26.14216157]
[1757649333785,1e-08,234.47,234.46,80.20253572]
[1757649333990,1e-08,234.47,234.46,93.79812973]
[1757649334202,1e-08,234.47,234.46,95.50305056]
[1757649335297,1e-08,234.47,234.46,96.43333527]
[1757649338631,1e-08,234.47,234.46,96.41333527]
[1757649342715,1e-08,234.47,234.46,63.09333527]
[1757649342922,1e-08,234.47,234.46,96.41333527]
[1757649347638,1e-08,234.5,234.49,59.73775558]
[1757649347839,0.1,234.63,234.55,39.59559401]
[1757649347840,0.67,234.62,234.55,39.59559401]
[1757649348038,0.67,234.62,234.61,0.14216157]
[1757649348249,0.67,234.62,234.61,33.44216157]
[1757649348444,0.67,234.62,234.61,0.14216157]
[1757649348757,0.67,234.62,234.61,33.44216157]
[1757649349240,0.67,234.62,234.56,4.45328939]
[1757649349434,0.67,234.61,234.6,26.0]
[1757649349630,0.67,234.61,234.6,58.58]
[1757649349836,0.67,234.61,234.6,25.28]
[1757649350039,0.67,234.61,234.57,0.14216157]
[1757649350346,0.67,234.61,234.56,4.45328939]
[1757649350541,0.67,234.6,234.52,4.26390473]
[1757649350737,0.67,234.59,234.52,4.26390473]
[1757649350939,0.67,234.58,234.53,33.3]
[1757649351148,0.67,234.57,234.52,4.26390473]
[1757649351362,0.67,234.56,234.53,33.44216157]
[1757649351580,0.67,234.55,234.54,4.40582661]
[1757649352149,0.67,234.55,234.54,30.40582661]
[1757649352466,0.67,234.57,234.54,63.70582661]
[1757649352647,0.67,234.56,234.55,0.14216157]
[1757649352848,0.67,234.56,234.55,33.44216157]
[1757649353053,0.67,234.56,234.55,33.42216157]
[1757649353242,0.67,234.56,234.55,26.14216157]
[1757649353571,0.67,234.56,234.55,59.42216157]
[1757649353739,0.67,234.56,234.55,63.68564483]
[1757649353945,0.67,234.58,234.55,63.68564483]
[1757649354841,0.66,234.6,234.55,63.68564483]
[1757649355041,0.66,234.59,234.55,63.68564483]
[1757649356050,0.66,234.59,234.55,74.34435299]
[1757649356763,0.66,234.62,234.56,13.59559401]
[1757649356971,0.66,234.62,234.6,26.0]
[1757649357173,0.66,234.62,234.61,33.28]
[1757649357966,0.66,234.62,234.61,37.5423929]
[1757649358668,0.66,234.62,234.61,33.28]
[1757649361747,0.66,234.62,234.6,4.26244795]
[1757649361955,0.66,234.62,234.61,33.28]
[1757649362981,0.1,234.63,234.6,4.26243086]
[1757649363185,0.66,234.62,234.61,59.28]
[1757649363479,0.66,234.62,234.61,26.0]
[1757649363683,0.66,234.62,234.61,33.28]
[1757649364669,0.66,234.62,234.6,30.26251245]
[1757649364860,0.66,234.62,234.61,33.28]
[1757649365057,0.1,234.63,234.61,33.28]
[1757649365282,0.76,234.63,234.62,0.14216157]
[1757649365788,0.1,234.63,234.62,33.40216157]
[1757649366256,0.1,234.63,234.62,37.6643728]
[1757649366656,1e-08,234.63,234.62,51.91996681]
[1757649370889,4.80191286,234.88,234.81,26.0]
[1757649371071,0.24549782,234.98,234.91,0.14216157]
[1757649371387,0.24549782,234.98,234.93,0.14216157]
[1757649371610,0.24549782,234.98,234.9,0.66]
[1757649371611,0.66,234.97,234.96,26.14216157]
[1757649371885,0.66,234.97,234.96,55.76216157]
[1757649372057,0.24549782,234.98,234.96,55.76216157]
[1757649372256,0.90549782,234.98,234.97,0.14216157]
[1757649372761,0.90549782,234.98,234.96,55.12]
[1757649373057,0.66,234.97,234.96,55.12]
[1757649373385,115.26885061,235.0,234.96,55.12]
[1757649373386,57.77025061,235.0,234.97,43.07775329]
[1757649373688,57.77025061,235.0,234.98,34.86]
[1757649374066,57.77025061,235.0,234.98,41.25434009]
[1757649374266,6.58600806,235.0,234.99,31.32688031]
[1757649374456,0.66,235.15,234.99,31.75243033]
[1757649374656,0.66,235.15,235.03,26.0]
[1757649374871,11.0143935,235.3,235.08,26.0]
[1757649374872,0.66,235.18,235.08,26.0]
[1757649375075,0.66,235.21,235.12,26.0]
[1757649375291,0.66,235.2,235.16,26.0]
[1757649375507,0.66,235.19,235.17,34.98]
[1757649375792,4.63946175,235.3,235.09,0.425369]
[1757649375995,26.0,235.27,235.1,34.98]
[1757649376296,26.0,235.25,235.1,60.98]
[1757649376985,4.25097772,235.24,235.1,60.98]
[1757649377291,30.25097772,235.24,235.1,60.98]
[1757649377463,48.25756784,235.24,235.1,26.0]
[1757649377667,0.66,235.23,235.11,35.02]
[1757649377869,0.66,235.22,235.11,35.02]
[1757649378094,0.66,235.21,235.11,35.02]
[1757649378293,40.87842203,235.24,235.11,35.02]
[1757649378294,0.66,235.2,235.11,35.02]
[1757649378601,0.66,235.19,235.11,61.02]
[1757649378786,4.91201771,235.19,235.03,0.5]
[1757649379122,15.54172135,235.19,235.07,26.0]
[1757649379274,0.66,235.18,235.08,30.72]
[1757649379600,0.66,235.17,235.02,26.0]
[1757649379797,0.66,235.16,235.03,35.1]
[1757649380002,30.25201771,235.19,235.04,35.1]
[1757649380003,0.66,235.15,235.04,35.1]
[1757649380298,0.66,235.14,235.07,26.0]
[1757649380600,0.66,235.14,235.08,35.16]
[1757649380896,4.25286288,235.14,235.08,35.16]
[1757649381095,0.66,235.13,235.01,0.5]
[1757649381391,0.66,235.13,235.02,35.16]
[1757649381605,0.66,235.12,235.02,35.16]
[1757649381796,0.66,235.11,235.02,35.16]
[1757649382103,0.66,235.1,234.98,35.14]
[1757649382272,0.66,235.1,234.99,35.64]
[1757649382477,0.66,235.1,235.02,26.0]
[1757649383005,28.63780486,235.2,235.03,0.5]
[1757649383200,28.63780486,235.2,235.04,35.16]
[1757649383201,0.66,235.13,235.04,35.16]
[1757649383705,0.66,235.16,235.07,26.0]
[1757649384008,0.66,235.16,235.07,26.5]
[1757649384500,0.66,235.15,235.04,0.14216157]
[1757649384706,0.66,235.15,235.08,26.0]
[1757649385107,4.91274287,235.15,235.08,26.0]
[1757649385605,0.66,235.15,235.08,26.0]
[1757649385997,4.9126684,235.15,235.08,26.0]
[1757649387626,0.06,235.1,234.96,12.75645796]
[1757649387787,0.06,235.1,234.98,0.5]
[1757649387988,0.66,235.09,234.99,35.1]
[1757649388306,0.66,235.09,235.0,0.5]
[1757649389008,0.66,235.09,234.99,35.1]
[1757649389185,0.66,235.08,234.99,35.1]
[1757649389384,0.66,235.08,235.02,26.0]
[1757649389713,4.91392077,235.08,235.02,26.0]
[1757649389907,4.91392077,235.08,234.99,35.6]